fUST/lending_fUST_20250826
["ID","MTS","AMOUNT","RATE_DAILY","PERIOD"]
[381452873,1756216243776,-1160.0,0.00037338,2]
[381452874,1756216243786,-13017.62,0.000374,14]
[381452875,1756216243795,-150.879776,0.00037479,5]
[381452876,1756216243804,-151.0,0.00037527,2]
[381452877,1756216243814,-300.0,0.00037527,2]
[381452878,1756216243823,-194.72792766,0.00037527,2]
[381452879,1756216243833,-300.0,0.00037527,2]
[381452880,1756216243845,-300.0,0.00037527,2]
[381452881,1756216243855,-206.76850988,0.00037527,2]
[381452882,1756216243864,-2434.74389024,0.00037527,2]
[381452883,1756216243874,-250.0,0.00037527,2]
[381452884,1756216243883,-250.0,0.00037527,2]
[381452885,1756216243892,-1000.0,0.00037527,2]
[381452886,1756216243903,-250.0,0.00037527,2]
[381452887,1756216243912,-250.0,0.00037527,2]
[381452888,1756216243922,-1000.0,0.00037527,2]
[381452889,1756216243932,-250.0,0.00037527,2]
[381452890,1756216243941,-151.0,0.00037527,2]
[381452891,1756216243951,-1000.0,0.00037527,2]
[381452892,1756216243959,-271.97766584,0.00037527,2]
[381452893,1756216243968,-207.30377708,0.00037527,2]
[381452894,1756216243978,-1000.0,0.00037527,2]
[381452895,1756216243987,-1000.0,0.00037527,2]
[381452896,1756216243996,-1000.0,0.00037527,2]
[381452897,1756216244005,-1000.0,0.00037527,2]
[381452898,1756216244013,-151.0,0.00037527,2]
[381452899,1756216244022,-151.0,0.00037527,2]
[381452900,1756216244030,-1000.0,0.00037527,2]
[381452901,1756216244040,-151.0,0.00037527,2]
[381452902,1756216244050,-1000.0,0.00037527,2]
[381452903,1756216244060,-151.37707569,0.00037527,2]
[381452904,1756216244069,-151.0,0.00037527,2]
[381452905,1756216244078,-1000.0,0.00037527,2]
[381452906,1756216244087,-151.0,0.00037527,2]
[381452907,1756216244096,-1000.0,0.00037527,2]
[381452908,1756216244106,-1000.0,0.00037527,2]
[381452909,1756216244115,-151.0,0.00037527,2]
[381452910,1756216244124,-1000.0,0.00037527,2]
[381452911,1756216244133,-152.256998,0.00037527,2]
[381452912,1756216244142,-1000.0,0.00037527,2]
[381452913,1756216244152,-1000.0,0.00037527,2]
[381452914,1756216244160,-285.0,0.00037527,2]
[381452915,1756216244168,-2524.82941417,0.00037582,2]
[381452916,1756216244178,-150.879776,0.00037584,6]
[381452917,1756216244188,-3000.0,0.0003762,5]
[381452918,1756216244197,-2150.26629001,0.00037637,2]
[381452919,1756216244206,-2618.2481025,0.00037637,2]
[381452920,1756216244216,-2715.12328229,0.00037692,2]
[381452921,1756216244226,-2815.58284374,0.00037747,2]
[381452922,1756216244235,-547.1240466,0.00037802,2]
[381452923,1756216244244,-341.0,0.00037806,2]
[381452924,1756216244253,-1260.0,0.00037886,2]
[381452925,1756216244262,-160.0,0.00037928,4]
[381452926,1756216244271,-341.0,0.00037984,2]
[381452927,1756216244280,-200.0,0.00038,30]
[381452928,1756216244289,-341.0,0.00038009,7]
[381452929,1756216244298,-341.0,0.00038103,2]
[381452930,1756216244307,-1046.08317985,0.00038168,5]
[381452931,1756216244316,-341.0,0.00038236,2]
[381452932,1756216244326,-5301.14839007,0.00038256,2]
[381452933,1756216244335,-400.0,0.00038356,30]
[381452934,1756216244345,-480.91,0.00038356,30]
[381452935,1756216244355,-480.0,0.00038356,30]
[381452936,1756216244364,-480.0,0.00038356,30]
[381452937,1756216244374,-480.0,0.00038356,30]
[381452938,1756216244383,-151.0,0.00038356,30]
[381452939,1756216244392,-701.07,0.00038356,30]
[381452940,1756216244403,-289.99569818,0.00038356,30]
[381452941,1756216244411,-480.0,0.00038356,30]
[381452942,1756216244418,-1010.95,0.00038356,30]
[381452943,1756216244426,-480.0,0.00038356,30]
[381452944,1756216244435,-480.0,0.00038356,30]
[381452945,1756216244444,-480.0,0.00038356,30]
[381452946,1756216244454,-480.0,0.00038356,30]
[381452947,1756216244463,-151.0,0.00038356,30]
[381452948,1756216244472,-153.500027,0.00038356,14]
[381452949,1756216244481,-480.0,0.00038356,30]
[381452950,1756216244491,-480.0,0.00038356,30]
[381452951,1756216244500,-480.0,0.00038356,30]
[381452952,1756216244509,-480.0,0.00038356,30]
[381452953,1756216244518,-151.0,0.00038356,30]
[381452954,1756216244528,-151.0,0.00038356,30]
[381452955,1756216244538,-689.41,0.00038356,30]
[381452956,1756216244552,-480.0,0.00038356,30]
[381452957,1756216244561,-480.0,0.00038356,30]
[381452958,1756216244571,-480.0,0.00038356,30]
[381452959,1756216244580,-480.0,0.00038356,30]
[381452960,1756216244590,-491.56,0.00038356,30]
[381452961,1756216244599,-480.0,0.00038356,30]
[381452962,1756216244608,-3885.88,0.00038356,30]
[381452963,1756216244617,-592.41,0.00038356,30]
[381452964,1756216244626,-480.0,0.00038356,30]
[381452965,1756216244635,-529.41,0.00038356,30]
[381452966,1756216244645,-480.0,0.00038356,30]
[381452967,1756216244655,-480.0,0.00038356,30]
[381452968,1756216244664,-480.0,0.00038356,30]
[381452969,1756216244674,-480.0,0.00038356,30]
[381452970,1756216244683,-735.6,0.00038356,30]
[381452971,1756216244693,-480.0,0.00038356,30]
[381452972,1756216244702,-480.0,0.00038356,30]
[381452973,1756216244711,-680.12,0.00038356,30]
[381452974,1756216244720,-480.0,0.00038356,30]
[381452975,1756216244729,-552.2,0.00038356,7]
[381452976,1756216244738,-480.0,0.00038356,30]
[381452977,1756216244748,-480.0,0.00038356,30]
[381452978,1756216244757,-694.04,0.00038356,30]
[381452979,1756216244767,-480.0,0.00038356,30]
[381452980,1756216244777,-513.15,0.00038356,30]
[381452981,1756216244790,-480.0,0.00038356,30]
[381452982,1756216244799,-799.0,0.00038356,30]
[381452983,1756216244809,-480.0,0.00038356,2]
[381452984,1756216244819,-480.0,0.00038356,30]
[381452985,1756216244829,-480.08,0.00038356,30]
[381452986,1756216244839,-480.0,0.00038356,2]
[381452987,1756216244850,-480.0,0.00038356,30]
[381452988,1756216244861,-151.0,0.00038356,30]
[381452989,1756216244871,-480.0,0.00038356,30]
[381452990,1756216244881,-480.0,0.00038356,30]
[381452991,1756216244891,-480.0,0.00038356,30]
[381452992,1756216244900,-480.0,0.00038356,30]
[381452993,1756216244915,-480.0,0.00038356,30]
[381452994,1756216244924,-554.55,0.00038356,30]
[381452995,1756216244935,-480.0,0.00038356,30]
[381452996,1756216244944,-480.0,0.00038356,30]
[381452997,1756216244954,-480.0,0.00038356,30]
[381452998,1756216244964,-151.0,0.00038356,30]
[381452999,1756216244973,-480.0,0.00038356,30]
[381453000,1756216244984,-232.94105961,0.00038356,30]
[381453001,1756216244993,-480.0,0.00038356,30]
[381453002,1756216245002,-480.0,0.00038356,30]
[381453003,1756216245012,-745.34,0.00038356,30]
[381453004,1756216245022,-480.0,0.00038356,30]
[381453005,1756216245032,-235.14532048,0.00038356,30]
[381453006,1756216245042,-480.0,0.00038356,30]
[381453007,1756216245052,-218.54864796,0.00038356,30]
[381453008,1756216245062,-374.95003843,0.00038356,30]
[381453009,1756216245072,-946.85,0.00038356,30]
[381453010,1756216245082,-480.0,0.00038356,30]
[381453011,1756216245092,-480.0,0.00038356,30]
[381453012,1756216245101,-480.0,0.00038356,30]
[381453013,1756216245111,-480.0,0.00038356,30]
[381453014,1756216245120,-503.69,0.00038356,30]
[381453015,1756216245130,-151.0,0.00038356,30]
[381453016,1756216245140,-480.0,0.00038356,30]
[381453017,1756216245151,-480.0,0.00038356,30]
[381453018,1756216245163,-151.0,0.00038356,30]
[381453019,1756216245173,-151.0,0.00038356,30]
[381453020,1756216245182,-151.0,0.00038356,30]
[381453021,1756216245191,-480.0,0.00038356,30]
[381453022,1756216245201,-699.88,0.00038356,30]
[381453023,1756216245211,-480.0,0.00038356,30]
[381453024,1756216245221,-574.83,0.00038356,30]
[381453025,1756216245231,-837.58,0.00038356,30]
[381453026,1756216245240,-480.0,0.00038356,30]
[381453027,1756216245250,-480.0,0.00038356,30]
[381453028,1756216245259,-480.0,0.00038356,2]
[381453029,1756216245269,-480.0,0.00038356,30]
[381453030,1756216245278,-711.26,0.00038356,30]
[381453031,1756216245288,-151.0,0.00038356,15]
[381453032,1756216245297,-867.58,0.00038356,30]
[381453033,1756216245307,-151.0,0.00038356,15]
[381453034,1756216245316,-2107.15,0.00038356,30]
[381453035,1756216245325,-480.0,0.00038356,30]
[381453036,1756216245335,-1039.38,0.00038356,30]
[381453037,1756216245344,-480.0,0.00038356,30]
[381453038,1756216245353,-480.0,0.00038356,30]
[381453039,1756216245362,-827.92,0.00038356,30]
[381453040,1756216245371,-480.0,0.00038356,30]
[381453041,1756216245380,-480.0,0.00038356,30]
[381453042,1756216245389,-1113.55,0.00038356,30]
[381453043,1756216245399,-480.0,0.00038356,30]
[381453044,1756216245410,-884.44,0.00038356,30]
[381453045,1756216245420,-151.0,0.00038356,30]
[381453046,1756216245430,-2065.12,0.00038356,30]
[381453047,1756216245439,-1157.35,0.00038356,30]
[381453048,1756216245450,-1745.23,0.00038356,30]
[381453049,1756216245460,-539.39,0.00038356,30]
[381453050,1756216245469,-151.0,0.00038356,30]
[381453051,1756216245479,-480.0,0.00038356,30]
[381453052,1756216245488,-2671.85,0.00038356,30]
[381453053,1756216245498,-151.0,0.00038356,30]
[381453054,1756216245508,-480.0,0.00038356,30]
[381453055,1756216245518,-1480.51,0.00038356,30]
[381453056,1756216245527,-480.0,0.00038356,30]
[381453057,1756216245538,-543.69479686,0.00038356,30]
[381453058,1756216245547,-480.0,0.00038356,30]
[381453059,1756216245557,-480.0,0.00038356,30]
[381453060,1756216245567,-680.03,0.00038356,30]
[381453061,1756216245576,-610.43,0.00038356,30]
[381453062,1756216245586,-151.0,0.00038356,30]
[381453063,1756216245596,-582.77,0.00038356,30]
[381453064,1756216245605,-1011.04,0.00038356,30]
[381453065,1756216245615,-480.0,0.00038356,30]
[381453066,1756216245624,-369.19560164,0.00038356,30]
[381453067,1756216245635,-480.0,0.00038356,30]
[381453068,1756216245645,-480.0,0.00038356,30]
[381453069,1756216245655,-888.58,0.00038356,30]
[381453070,1756216245665,-7615.41,0.00038356,30]
[381453071,1756216245675,-480.0,0.00038356,30]
[381453072,1756216245685,-516.65,0.00038356,30]
[381453073,1756216245696,-480.0,0.00038356,30]
[381453074,1756216245706,-1446.57,0.00038356,30]
[381453075,1756216245716,-151.0,0.00038356,30]
[381453076,1756216245725,-151.0,0.00038356,30]
[381453077,1756216245735,-202.61682924,0.00038356,30]
[381453078,1756216245746,-865.58,0.00038356,30]
[381453079,1756216245755,-480.0,0.00038356,30]
[381453080,1756216245765,-567.08,0.00038356,30]
[381453081,1756216245776,-480.0,0.00038356,30]
[381453082,1756216245787,-1134.98,0.00038356,30]
[381453083,1756216245796,-480.0,0.00038356,30]
[381453084,1756216245806,-967.77,0.00038356,30]
[381453085,1756216245816,-813.36,0.00038356,30]
[381453086,1756216245825,-480.0,0.00038356,30]
[381453087,1756216245834,-513.23,0.00038356,30]
[381453088,1756216245844,-873.65,0.00038356,30]
[381453089,1756216245853,-672.67,0.00038356,30]
[381453090,1756216245863,-480.0,0.00038356,30]
[381453091,1756216245873,-151.0,0.00038356,30]
[381453092,1756216245883,-587.88,0.00038356,30]
[381453093,1756216245893,-613.44,0.00038356,30]
[381453094,1756216245903,-992.28,0.00038356,30]
[381453095,1756216245913,-480.0,0.00038356,30]
[381453096,1756216245922,-1002.02,0.00038356,30]
[381453097,1756216245932,-151.0,0.00038356,30]
[381453099,1756216245942,-1418.3,0.00038356,30]
[381453101,1756216245952,-796.62,0.00038356,30]
[381453102,1756216245962,-2317.65,0.00038356,30]
[381453103,1756216245972,-522.98,0.00038356,30]
[381453104,1756216245981,-480.0,0.00038356,30]
[381453105,1756216245991,-151.0,0.00038356,30]
[381453106,1756216246001,-151.0,0.00038356,30]
[381453107,1756216246011,-556.37,0.00038356,30]
[381453108,1756216246021,-759.18,0.00038356,30]
[381453109,1756216246031,-805.94,0.00038356,30]
[381453110,1756216246041,-480.0,0.00038356,30]
[381453111,1756216246052,-480.0,0.00038356,30]
[381453113,1756216246062,-480.0,0.00038356,30]
[381453115,1756216246072,-709.52,0.00038356,30]
[381453116,1756216246082,-1692.42,0.00038356,30]
[381453117,1756216246092,-480.0,0.00038356,30]
[381453118,1756216246102,-811.21,0.00038356,30]
[381453119,1756216246112,-999.09,0.00038356,30]
[381453120,1756216246121,-480.0,0.00038356,30]
[381453121,1756216246131,-480.0,0.00038356,30]
[381453122,1756216246141,-480.0,0.00038356,30]
[381453123,1756216246151,-614.18,0.00038356,30]
[381453124,1756216246162,-480.0,0.00038356,30]
[381453125,1756216246172,-1160.05,0.00038356,30]
[381453126,1756216246181,-1054.84,0.00038356,30]
[381453127,1756216246191,-610.86,0.00038356,30]
[381453128,1756216246201,-480.0,0.00038356,30]
[381453129,1756216246211,-480.0,0.00038356,30]
[381453130,1756216246220,-480.0,0.00038356,7]
[381453131,1756216246231,-1465.02,0.00038356,30]
[381453132,1756216246241,-604.01,0.00038356,30]
[381453133,1756216246251,-1041.46,0.00038356,30]
[381453134,1756216246260,-480.0,0.00038356,30]
[381453135,1756216246270,-480.0,0.00038356,30]
[381453136,1756216246280,-151.0,0.00038356,30]
[381453138,1756216246290,-480.0,0.00038356,30]
[381453139,1756216246300,-1244.82,0.00038356,30]
[381453140,1756216246310,-480.0,0.00038356,30]
[381453141,1756216246319,-571.6223281,0.00038356,30]
[381453142,1756216246329,-1816.68,0.00038356,30]
[381453143,1756216246339,-716.2,0.00038356,30]
[381453144,1756216246349,-480.0,0.00038356,30]
[381453145,1756216246359,-213.350436,0.00038356,30]
[381453146,1756216246369,-480.0,0.00038356,30]
[381453147,1756216246380,-1040.12,0.00038356,30]
[381453148,1756216246390,-480.0,0.00038356,30]
[381453149,1756216246400,-615.74,0.00038356,30]
[381453150,1756216246412,-604.81771747,0.00038356,30]
[381453151,1756216246422,-632.2,0.00038356,30]
[381453152,1756216246431,-480.0,0.00038356,30]
[381453153,1756216246443,-1616.65,0.00038356,30]
[381453154,1756216246452,-480.0,0.00038356,30]
[381453155,1756216246462,-480.0,0.00038356,30]
[381453156,1756216246471,-568.04,0.00038356,30]
[381453157,1756216246481,-480.0,0.00038356,30]
[381453158,1756216246490,-480.0,0.00038356,30]
[381453159,1756216246500,-480.0,0.00038356,30]
[381453160,1756216246510,-1761.61,0.00038356,30]
[381453161,1756216246520,-480.0,0.00038356,30]
[381453162,1756216246530,-480.0,0.00038356,30]
[381453163,1756216246539,-480.0,0.00038356,30]
[381453164,1756216246550,-1549.8,0.00038356,30]
[381453165,1756216246560,-1673.41,0.00038356,30]
[381453166,1756216246570,-1626.12,0.00038356,30]
[381453167,1756216246580,-1127.24,0.00038356,30]
[381453168,1756216246589,-480.0,0.00038356,30]
[381453169,1756216246599,-480.0,0.00038356,30]
[381453170,1756216246608,-480.0,0.00038356,30]
[381453171,1756216246618,-683.29,0.00038356,30]
[381453172,1756216246628,-480.0,0.00038356,30]
[381453173,1756216246637,-480.0,0.00038356,30]
[381453174,1756216246647,-480.00000001,0.00038356,30]
[381453175,1756216246658,-844.88,0.00038356,30]
[381453176,1756216246668,-2220.97,0.00038356,30]
[381453177,1756216246678,-480.0,0.00038356,30]
[381453178,1756216246688,-537.83,0.00038356,30]
[381453179,1756216246698,-2102.38,0.00038356,30]
[381453180,1756216246708,-480.0,0.00038356,30]
[381453181,1756216246718,-480.0,0.00038356,30]
[381453182,1756216246727,-151.0,0.00038356,30]
[381453183,1756216246736,-1257.7,0.00038356,30]
[381453184,1756216246746,-480.0,0.00038356,30]
[381453185,1756216246756,-480.0,0.00038356,30]
[381453186,1756216246766,-650.28,0.00038356,30]
[381453187,1756216246776,-1606.89,0.00038356,30]
[381453188,1756216246789,-480.0,0.00038356,30]
[381453189,1756216246800,-685.71,0.00038356,30]
[381453190,1756216246809,-245.0,0.00038356,30]
[381453191,1756216246819,-480.0,0.00038356,30]
[381453192,1756216246829,-151.0,0.00038356,30]
[381453193,1756216246839,-480.0,0.00038356,30]
[381453194,1756216246849,-480.0,0.00038356,30]
[381453195,1756216246860,-480.0,0.00038356,30]
[381453196,1756216246870,-480.0,0.00038356,30]
[381453197,1756216246880,-1537.41,0.00038356,30]
[381453198,1756216246889,-480.0,0.00038356,30]
[381453199,1756216246899,-725.66,0.00038356,30]
[381453200,1756216246911,-480.0,0.00038356,30]
[381453201,1756216246923,-480.0,0.00038356,30]
[381453202,1756216246934,-151.0,0.00038356,30]
[381453203,1756216246944,-618.38,0.00038356,30]
[381453204,1756216246955,-480.0,0.00038356,30]
[381453205,1756216246965,-480.0,0.00038356,30]
[381453206,1756216246976,-480.0,0.00038356,30]
[381453207,1756216246986,-480.0,0.00038356,30]
[381453208,1756216246996,-480.0,0.00038356,30]
[381453209,1756216247006,-523.02829222,0.00038356,30]
[381453210,1756216247016,-500.0,0.00038356,30]
[381453211,1756216247026,-480.0,0.00038356,30]
[381453212,1756216247036,-480.0,0.00038356,30]
[381453213,1756216247047,-480.0,0.00038356,30]
[381453214,1756216247057,-480.0,0.00038356,30]
[381453215,1756216247067,-748.51,0.00038356,30]
[381453216,1756216247077,-743.26,0.00038356,30]
[381453217,1756216247087,-151.0,0.00038356,30]
[381453218,1756216247097,-1000.0,0.00038356,2]
[381453219,1756216247107,-1000.0,0.00038356,2]
[381453220,1756216247117,-480.0,0.00038356,30]
[381453221,1756216247127,-463.661193,0.00038356,2]
[381453222,1756216247137,-151.0,0.00038356,30]
[381453223,1756216247147,-480.0,0.00038356,30]
[381453224,1756216247158,-850.15,0.00038356,30]
[381453225,1756216247169,-480.0,0.00038356,30]
[381453226,1756216247180,-263.11497141,0.00038356,30]
[381453227,1756216247190,-480.0,0.00038356,30]
[381453228,1756216247200,-151.0,0.00038356,30]
[381453229,1756216247210,-151.0,0.00038356,30]
[381453230,1756216247220,-480.0,0.00038356,30]
[381453231,1756216247230,-661.58,0.00038356,30]
[381453232,1756216247240,-480.0,0.00038356,30]
[381453233,1756216247250,-480.0,0.00038356,30]
[381453234,1756216247260,-480.0,0.00038356,30]
[381453235,1756216247270,-670.64,0.00038356,30]
[381453236,1756216247280,-151.0,0.00038356,30]
[381453237,1756216247290,-480.0,0.00038356,30]
[381453238,1756216247300,-151.0,0.00038356,30]
[381453239,1756216247310,-804.69,0.00038356,30]
[381453240,1756216247320,-151.0,0.00038356,30]
[381453241,1756216247330,-1270.58,0.00038356,30]
[381453242,1756216247340,-480.0,0.00038356,30]
[381453243,1756216247350,-151.0,0.00038356,30]
[381453244,1756216247359,-7220.81,0.00038356,30]
[381453245,1756216247369,-480.0,0.00038356,30]
[381453246,1756216247379,-480.0,0.00038356,30]
[381453247,1756216247388,-151.0,0.00038356,30]
[381453248,1756216247397,-480.0,0.00038356,30]
[381453249,1756216247409,-480.0,0.00038356,30]
[381453250,1756216247419,-480.0,0.00038356,30]
[381453251,1756216247430,-480.0,0.00038356,30]
[381453252,1756216247440,-743.23,0.00038356,30]
[381453253,1756216247450,-577.17,0.00038356,20]
[381453254,1756216247460,-566.75,0.00038356,30]
[381453255,1756216247470,-480.0,0.00038356,30]
[381453256,1756216247481,-1372.45,0.00038356,30]
[381453257,1756216247490,-524.61,0.00038356,30]
[381453258,1756216247500,-151.0,0.00038356,30]
[381453259,1756216247510,-566.4,0.00038356,30]
[381453260,1756216247520,-151.0,0.00038356,30]
[381453261,1756216247529,-480.0,0.00038356,30]
[381453262,1756216247539,-8544.28,0.00038356,30]
[381453263,1756216247549,-480.0,0.00038356,30]
[381453264,1756216247560,-151.0,0.00038356,30]
[381453265,1756216247570,-1001.28,0.00038356,30]
[381453266,1756216247581,-868.7,0.00038356,30]
[381453267,1756216247591,-724.14,0.00038356,30]
[381453268,1756216247601,-2704.59,0.00038356,30]
[381453269,1756216247611,-480.0,0.00038356,30]
[381453270,1756216247621,-591.41682199,0.00038356,30]
[381453271,1756216247631,-886.14,0.00038356,30]
[381453272,1756216247640,-480.0,0.00038356,30]
[381453273,1756216247651,-480.0,0.00038356,30]
[381453274,1756216248081,-480.0,0.00038356,30]
[381453275,1756216248093,-586.91,0.00038356,30]
[381453276,1756216248103,-480.0,0.00038356,30]
[381453277,1756216248114,-586.95,0.00038356,30]
[381453278,1756216248124,-480.0,0.00038356,30]
[381453279,1756216248134,-496.31,0.00038356,30]
[381453280,1756216248143,-600.14,0.00038356,30]
[381453281,1756216248154,-2391.81,0.00038356,30]
[381453282,1756216248167,-1153.41,0.00038356,30]
[381453283,1756216248178,-480.0,0.00038356,30]
[381453284,1756216248188,-2077.67,0.00038356,30]
[381453285,1756216248199,-1816.32,0.00038356,30]
[381453286,1756216248209,-480.0,0.00038356,30]
[381453287,1756216248219,-745.31,0.00038356,30]
[381453288,1756216248229,-482.42,0.00038356,30]
[381453289,1756216248239,-560.66,0.00038356,30]
[381453290,1756216248249,-1329.41,0.00038356,30]
[381453291,1756216248259,-480.0,0.00038356,30]
[381453292,1756216248269,-834.93,0.00038356,30]
[381453293,1756216248278,-480.0,0.00038356,30]
[381453294,1756216248288,-480.0,0.00038356,30]
[381453295,1756216248299,-1267.47,0.00038356,30]
[381453296,1756216248309,-1855.48,0.00038356,30]
[381453297,1756216248318,-480.0,0.00038356,30]
[381453298,1756216248328,-480.0,0.00038356,30]
[381453299,1756216248337,-660.11,0.00038356,30]
[381453300,1756216248347,-588.7,0.00038356,30]
[381453301,1756216248357,-200.0,0.00038356,30]
[381453302,1756216248366,-726.39,0.00038356,30]
[381453303,1756216248377,-486.11,0.00038356,30]
[381453304,1756216248387,-480.0,0.00038356,30]
[381453305,1756216248397,-555.42,0.00038356,30]
[381453306,1756216248408,-615.71,0.00038356,30]
[381453307,1756216248418,-480.0,0.00038356,30]
[381453308,1756216248428,-480.0,0.00038356,30]
[381453309,1756216248437,-813.38,0.00038356,30]
[381453310,1756216248447,-677.73,0.00038356,30]
[381453311,1756216248458,-6087.08,0.00038356,30]
[381453312,1756216248468,-480.0,0.00038356,30]
[381453313,1756216248479,-480.0,0.00038356,30]
[381453314,1756216248489,-1484.34,0.00038356,30]
[381453315,1756216248499,-151.0,0.00038356,30]
[381453316,1756216248510,-528.12906361,0.00038356,30]
[381453317,1756216248520,-521.98,0.00038356,30]
[381453318,1756216248530,-282.813,0.00038356,30]
[381453319,1756216248540,-480.0,0.00038356,30]
[381453320,1756216248550,-151.0,0.00038356,30]
[381453321,1756216248560,-480.0,0.00038356,30]
[381453322,1756216248570,-151.0,0.00038356,30]
[381453323,1756216248580,-480.0,0.00038356,30]
[381453324,1756216248591,-151.0,0.00038356,30]
[381453325,1756216248602,-2066.61,0.00038356,30]
[381453326,1756216248612,-3371.81,0.00038356,30]
[381453327,1756216248622,-17788.27,0.00038356,30]
[381453328,1756216248632,-419.91633058,0.00038356,30]
[381453329,1756216248947,-211.48366942,0.00038356,30]
[381453330,1756216248958,-863.34,0.00038356,30]
[381453331,1756216248968,-549.81,0.00038356,30]
[381453332,1756216248978,-480.0,0.00038356,30]
[381453333,1756216248988,-953.95,0.00038356,30]
[381453334,1756216248998,-480.0,0.00038356,30]
[381453335,1756216249008,-1899.84,0.00038356,30]
[381453336,1756216249020,-152.602771,0.00038356,30]
[381453337,1756216249030,-1797.54,0.00038356,30]
[381453338,1756216249040,-342.0284356,0.00038356,30]
[381453339,1756216249050,-480.0,0.00038356,30]
[381453340,1756216249061,-480.0,0.00038356,30]
[381453341,1756216249071,-151.0,0.00038356,30]
[381453342,1756216249082,-480.0,0.00038356,30]
[381453343,1756216249092,-480.0,0.00038356,30]
[381453344,1756216249102,-6193.18,0.00038356,30]
[381453345,1756216249112,-151.0,0.00038356,30]
[381453346,1756216249122,-480.0,0.00038356,30]
[381453347,1756216249133,-480.0,0.00038356,7]
[381453348,1756216249143,-579.61,0.00038356,30]
[381453349,1756216249152,-799.77,0.00038356,30]
[381453350,1756216249164,-1283.57,0.00038356,30]
[381453351,1756216249174,-151.0,0.00038356,30]
[381453352,1756216249184,-480.0,0.00038356,30]
[381453353,1756216249194,-1335.61,0.00038356,30]
[381453354,1756216249204,-480.0,0.00038356,30]
[381453355,1756216249213,-480.0,0.00038356,30]
[381453356,1756216249223,-480.0,0.00038356,30]
[381453357,1756216249232,-480.0,0.00038356,30]
[381453358,1756216249241,-480.0,0.00038356,30]
[381453359,1756216249251,-9638.26,0.00038356,30]
[381453360,1756216249261,-480.0,0.00038356,30]
[381453361,1756216249271,-480.0,0.00038356,30]
[381453362,1756216249281,-480.0,0.00038356,30]
[381453363,1756216249292,-1430.69,0.00038356,30]
[381453364,1756216249301,-1702.05,0.00038356,30]
[381453365,1756216249311,-480.0,0.00038356,30]
[381453366,1756216249320,-243.804553,0.00038356,30]
[381453367,1756216249329,-480.0,0.00038356,30]
[381453368,1756216249339,-480.0,0.00038356,30]
[381453369,1756216249348,-243.804553,0.00038356,30]
[381453370,1756216249358,-480.0,0.00038356,30]
[381453371,1756216249367,-243.804553,0.00038356,30]
[381453372,1756216249376,-1702.95,0.00038356,30]
[381453373,1756216249386,-480.0,0.00038356,30]
[381453374,1756216249395,-243.804553,0.00038356,30]
[381453375,1756216249405,-480.0,0.00038356,30]
[381453376,1756216249415,-480.0,0.00038356,30]
[381453377,1756216249424,-1802.35,0.00038356,30]